bitfinex/quotes_ETHUSD_20251004
["timestamp","ask_amount","ask_price","bid_price","bid_amount"]
[1759591996744,0.4529,4450.9,4450.8,14.612]
[1759591996946,0.4529,4450.9,4450.8,19.39778709]
[1759591997141,0.4529,4450.9,4450.8,17.151]
[1759591997304,0.4529,4450.9,4450.8,19.39778709]
[1759591998050,0.4529,4450.9,4450.8,14.612]
[1759591998270,0.4529,4450.9,4450.8,17.151]
[1759591998471,0.01,4450.9,4450.8,19.39778709]
[1759591998619,0.4529,4450.9,4450.8,16.85878709]
[1759591998961,0.4529,4450.9,4450.8,19.39778709]
[1759591999719,0.4529,4450.9,4450.8,16.85878709]
[1759592000351,0.01,4450.9,4450.8,19.39778709]
[1759592001554,0.4727,4450.9,4450.8,14.612]
[1759592001923,0.4727,4450.9,4450.8,14.5]
[1759592002123,0.4727,4450.9,4449.2,2.24758993]
[1759592002322,0.4727,4450.9,4450.3,0.112]
[1759592002323,0.4627,4450.8,4450.3,0.112]
[1759592002553,0.4627,4450.8,4450.4,2.539]
[1759592002853,0.4627,4450.7,4450.4,4.78598087]
[1759592003071,0.122,4450.9,4450.4,2.539]
[1759592003072,0.4627,4450.6,4450.4,2.539]
[1759592003381,0.4627,4450.5,4450.4,2.539]
[1759592004137,0.4627,4450.5,4450.3,0.112]
[1759592004338,0.4627,4450.5,4450.4,2.539]
[1759592004643,0.112,4450.6,4450.0,2.24718395]
[1759592004855,0.112,4450.6,4450.1,2.539]
[1759592005060,0.4627,4450.5,4450.1,2.539]
[1759592005254,0.4627,4450.4,4450.1,2.539]
[1759592005461,0.112,4450.6,4450.1,2.539]
[1759592005747,0.4627,4450.3,4450.2,2.55029782]
[1759592006173,0.4627,4450.3,4450.2,2.539]
[1759592006576,0.4627,4450.3,4450.2,2.25838884]
[1759592006813,0.4627,4450.3,4450.2,4.78609001]
[1759592007082,0.4727,4450.9,4450.5,2.24693854]
[1759592007382,0.4627,4450.8,4450.6,2.539]
[1759592007580,0.4627,4450.7,4450.6,2.539]
[1759592007786,0.4627,4450.7,4449.7,2.24730213]
[1759592007955,0.4627,4450.6,4450.2,0.112]
[1759592008186,0.4627,4450.6,4450.3,2.55029706]
[1759592008388,0.4627,4450.5,4450.3,2.55029706]
[1759592008582,0.112,4450.8,4450.3,2.55029706]
[1759592008790,0.4627,4450.7,4450.3,2.55029706]
[1759592009121,0.4627,4450.6,4450.3,2.539]
[1759592009272,0.4663,4450.5,4450.3,2.539]
[1759592009709,0.112,4450.8,4450.2,0.112]
[1759592010016,0.4663,4450.4,4450.3,2.539]
[1759592010423,0.4663,4450.4,4450.0,0.112]
[1759592010727,0.4663,4450.4,4450.1,2.539]
[1759592010883,0.4663,4450.3,4450.1,2.539]
[1759592011090,0.4663,4450.2,4450.0,0.112]
[1759592011273,0.112,4450.5,4450.1,2.539]
[1759592011614,0.112,4450.5,4449.2,2.24758654]
[1759592011832,0.112,4450.5,4449.7,0.112]
[1759592012112,0.4663,4450.4,4449.7,0.112]
[1759592012616,0.4663,4450.4,4449.8,2.539]
[1759592012911,0.4663,4450.3,4449.7,0.112]
[1759592013123,0.4663,4450.3,4449.9,2.539]
[1759592013284,0.112,4450.5,4449.7,0.112]
[1759592013489,0.4663,4450.2,4449.7,0.112]
[1759592013675,0.112,4450.5,4449.7,0.112]
[1759592013676,0.4663,4450.1,4449.7,0.112]
[1759592013877,0.4663,4450.0,4449.7,0.112]
[1759592014091,0.4663,4450.0,4449.8,4.78627677]
[1759592014332,0.4663,4450.0,4449.9,2.24724151]
[1759592014567,0.112,4450.5,4449.8,2.539]
[1759592014568,0.4663,4450.4,4449.8,2.539]
[1759592015029,0.4663,4450.4,4449.9,2.539]
[1759592015676,0.112,4450.5,4449.1,2.4]
[1759592015677,0.4663,4450.8,4450.2,0.112]
[1759592015860,0.4663,4450.8,4450.3,4.7859966]
[1759592016193,0.4663,4450.7,4450.2,2.35907296]
[1759592016488,0.4663,4450.7,4450.4,2.539]
[1759592016838,0.01,4450.9,4450.2,0.112]
[1759592017033,0.4663,4450.6,4450.3,2.539]
[1759592017240,0.4663,4450.5,4450.3,2.539]
[1759592017833,0.4663,4450.5,4450.2,0.112]
[1759592018057,0.4663,4450.5,4450.3,2.539]
[1759592018467,0.4763,4450.9,4450.3,4.78602094]
[1759592018661,0.4763,4450.9,4450.4,2.539]
[1759592019068,0.4663,4450.8,4450.4,2.539]
[1759592019480,0.4663,4450.7,4450.5,2.539]
[1759592019682,0.01,4450.9,4450.5,2.539]
[1759592019893,0.4663,4450.7,4450.5,2.539]
[1759592020103,0.4663,4450.6,4450.5,2.539]
[1759592020592,0.01,4450.9,4450.5,2.539]
[1759592020754,0.4663,4450.8,4450.2,0.112]
[1759592020958,0.4663,4450.8,4450.3,2.539]
[1759592021184,0.4663,4450.8,4450.4,2.539]
[1759592021400,0.4663,4450.8,4450.2,0.112]
[1759592021571,0.112,4450.3,4449.6,0.112]
[1759592021928,0.49438862,4450.2,4448.9,2.24774035]
[1759592022109,0.112,4449.8,4449.2,0.112]
[1759592022255,0.4663,4449.7,4449.3,2.539]
[1759592022457,0.112,4449.8,4449.4,2.539]
[1759592022758,0.4663,4449.7,4449.4,2.539]
[1759592022956,0.4663,4449.6,4449.2,0.112]
[1759592023175,0.112,4449.4,4449.3,2.539]
[1759592023380,0.5783,4449.4,4449.3,2.539]
[1759592023580,0.5783,4449.4,4448.8,0.112]
[1759592023863,0.5783,4449.4,4448.9,2.539]
[1759592024070,0.4663,4449.3,4448.8,0.112]
[1759592024264,0.4663,4449.3,4448.1,0.01]
[1759592024464,0.4663,4449.3,4448.6,0.112]
[1759592024887,0.02809493,4449.2,4448.1,0.01]
[1759592025089,0.112,4449.0,4448.4,0.112]
[1759592025290,0.4663,4448.9,4448.4,0.112]
[1759592025602,0.4663,4448.9,4448.1,0.01]
[1759592025603,0.4663,4448.9,4448.5,2.539]
[1759592025809,0.112,4449.0,4448.1,0.1228]
[1759592025810,0.4663,4448.8,4448.1,0.1228]
[1759592026109,0.4663,4448.8,4448.2,2.539]
[1759592026890,0.4663,4448.8,4448.1,0.1228]
[1759592027076,0.4663,4448.8,4448.2,2.539]
[1759592027416,0.112,4448.5,4448.3,2.539]
[1759592027574,0.112,4448.5,4448.3,0.01132131]
[1759592028014,0.112,4448.5,4448.4,2.539]
[1759592028210,0.112,4448.5,4448.4,4.78699928]
[1759592028398,0.4663,4449.0,4448.4,4.78699928]
[1759592028710,0.112,4448.8,4448.5,0.01131878]
[1759592029273,0.112,4449.1,4448.6,0.4665]
[1759592029474,0.112,4449.1,4448.7,0.01131676]
[1759592029710,0.4663,4449.6,4448.7,0.47781676]
[1759592029909,0.4663,4449.6,4448.7,0.5785]
[1759592029910,0.112,4449.4,4448.7,0.5785]
[1759592030320,0.112,4449.4,4448.7,0.112]
[1759592030693,0.03008988,4450.0,4448.8,2.539]
[1759592030694,0.4755943,4449.3,4448.8,2.539]
[1759592030902,0.0280943,4449.3,4448.9,2.539]
[1759592031115,0.4475,4449.2,4449.0,2.539]
[1759592031278,0.47559556,4449.1,4449.0,2.539]
[1759592031484,0.58759556,4449.1,4448.3,2.24804981]
[1759592031720,0.112,4448.8,4448.4,2.539]
[1759592032436,0.112,4448.8,4448.5,0.01131979]
[1759592032579,0.112,4448.8,4448.6,2.539]
[1759592033022,0.112,4448.8,4448.7,0.01131827]
[1759592034081,0.5595,4448.8,4448.7,2.539]
[1759592034483,0.112,4448.8,4448.4,2.24795226]
[1759592034718,0.112,4448.8,4448.5,4.79826383]
[1759592034888,0.112,4448.8,4448.6,4.7868903]
[1759592035088,0.4475,4449.7,4448.7,0.01131827]
[1759592035382,0.4475,4449.7,4448.8,2.539]
[1759592035383,0.112,4449.2,4448.8,2.539]
[1759592035582,0.112,4449.2,4448.5,0.112]
[1759592035818,0.112,4449.2,4448.6,2.539]
[1759592036389,0.112,4449.2,4448.6,4.78689226]
[1759592036720,0.112,4449.2,4448.7,0.01131625]
[1759592037223,0.4475,4449.1,4448.5,0.112]
[1759592037420,0.4475,4449.1,4448.6,2.539]
[1759592037722,0.4755962,4449.0,4448.1,0.01]
[1759592037894,0.112,4448.8,4448.2,2.6518]
[1759592038097,0.112,4448.8,4448.4,2.24798798]
[1759592038284,0.112,4448.8,4448.5,2.55031979]
[1759592038485,0.112,4448.8,4448.6,2.539]
[1759592038923,0.112,4448.8,4448.7,2.539]
[1759592039087,0.112,4449.1,4448.7,2.55031827]
[1759592039292,0.112,4449.1,4448.7,2.539]
[1759592039809,0.4475,4449.7,4448.8,0.011316]
[1759592039994,0.112,4449.3,4449.0,2.2476754]
[1759592040197,0.47559304,4449.8,4449.1,4.79794825]
[1759592040397,0.112,4449.7,4449.2,0.01130944]
[1759592040587,0.112,4449.7,4449.1,2.539]
[1759592040793,0.112,4449.7,4449.2,0.01130994]
[1759592041226,0.112,4449.9,4449.3,0.567]
[1759592041718,0.002,4450.0,4448.9,0.455]
[1759592041888,0.002,4450.0,4449.4,0.112]
[1759592042232,0.002,4450.0,4449.5,2.539]
[1759592042591,0.002,4450.0,4448.1,0.6436]
[1759592042914,0.002,4450.0,4448.9,0.112]
[1759592042915,0.112,4449.5,4448.9,0.112]
[1759592043121,0.5595,4449.5,4448.9,0.112]
[1759592043294,0.02809367,4449.4,4448.2,0.455]
[1759592043490,0.4475,4449.5,4448.2,0.455]
[1759592043491,0.112,4448.9,4448.6,2.24789209]
[1759592043717,0.112,4448.9,4448.7,0.01131827]
[1759592043902,0.112,4448.9,4448.8,2.539]
[1759592044242,0.112,4449.1,4448.8,2.539]
[1759592044548,0.112,4449.1,4448.9,0.01131524]
[1759592045511,0.002,4450.0,4449.0,2.994]
[1759592045714,0.002,4450.0,4449.1,0.01130918]
[1759592046011,0.02809051,4449.9,4449.2,2.539]
[1759592046209,0.02809051,4449.9,4449.3,0.01130817]
[1759592046807,0.002,4450.0,4449.2,2.539]
[1759592047349,0.002,4450.0,4449.2,4.7865796]
[1759592047753,0.002,4449.9,4449.2,2.539]
[1759592048051,0.002,4449.9,4449.2,4.7865766]
[1759592048345,0.002,4449.9,4448.6,0.001]
[1759592048550,0.4495,4449.9,4448.7,2.24784268]
[1759592048749,0.02809115,4449.8,4448.6,0.001]
[1759592048952,0.02809115,4449.8,4448.8,2.539]
[1759592049110,0.02809115,4449.8,4448.6,0.001]
[1759592049315,0.02809115,4449.8,4448.8,2.24779715]
[1759592049516,0.02809115,4449.8,4448.7,4.78682765]
[1759592049747,0.02809115,4449.8,4448.8,2.539]
[1759592050123,0.02809115,4449.8,4448.6,0.001]
[1759592050340,0.4475,4449.7,4448.7,2.539]
[1759592050514,0.02809241,4449.6,4448.6,0.001]
[1759592051051,0.02809241,4449.6,4448.6,2.24885588]
[1759592051222,0.02809241,4449.6,4448.7,2.539]
[1759592051650,0.02809241,4449.6,4448.6,0.001]
[1759592051815,0.02809241,4449.6,4448.7,2.539]
[1759592052016,0.02809241,4449.6,4448.7,4.78684018]
[1759592052220,0.02809241,4449.6,4448.7,2.539]
[1759592052726,0.02809241,4449.6,4448.6,2.24888476]
[1759592052924,0.47559178,4449.7,4449.0,2.24768934]
[1759592053136,0.47559178,4449.7,4449.0,0.01131095]
[1759592053335,0.47559178,4449.7,4449.1,2.539]
[1759592053554,0.002,4449.9,4449.2,0.01130994]
[1759592053925,0.002,4449.9,4449.3,2.539]
[1759592054229,0.47559115,4449.8,4448.6,0.001]
[1759592054454,2.72289079,4449.8,4448.6,0.001]
[1759592054623,0.47559115,4449.8,4448.6,0.001]
[1759592054825,2.24737897,4449.7,4448.7,2.539]
[1759592055121,0.47559241,4449.6,4448.6,0.001]
[1759592055353,0.6336,4449.4,4448.6,0.001]
[1759592055555,0.112,4448.7,4448.6,0.001]
[1759592056260,0.5595,4448.7,4448.6,0.001]
[1759592059367,0.112,4448.7,4448.6,0.001]
[1759592060051,0.4475,4449.7,4448.6,0.001]
[1759592060254,0.02809241,4449.6,4448.6,0.456]
[1759592060562,0.112,4449.1,4448.6,0.456]
[1759592060768,0.112,4449.1,4448.7,0.4305]
[1759592061765,0.112,4449.1,4448.6,0.001]
[1759592062166,0.112,4448.8,4448.7,2.539]
[1759592062480,0.112,4448.8,4448.6,0.001]
[1759592062662,0.112,4448.8,4448.7,2.539]
[1759592062867,0.112,4448.8,4448.6,0.001]
[1759592063178,0.112,4448.8,4448.7,2.539]
[1759592064145,0.6336,4449.4,4448.6,0.001]
[1759592064348,0.4652,4448.7,4448.6,2.54]
[1759592064660,0.4652,4448.7,4448.6,0.001]
[1759592064870,2.71304768,4448.7,4448.6,0.001]
[1759592065190,0.58327925,4448.7,4448.6,0.001]
[1759592065346,2.83112693,4448.7,4448.6,0.001]
[1759592065783,5.23112693,4448.7,4448.6,0.001]
[1759592065994,5.20302884,4448.7,4448.6,0.001]
[1759592067203,2.95518116,4448.7,4448.6,0.001]
[1759592067492,5.23112693,4448.7,4448.6,0.001]
[1759592067692,5.20302884,4448.7,4448.6,0.001]
[1759592070149,5.20302884,4448.7,4448.1,0.011]
[1759592070357,0.02809872,4448.6,4447.4,0.3991]
[1759592070929,0.02809872,4448.6,4447.5,0.01132839]
[1759592071186,0.02809872,4448.6,4447.4,0.3991]
[1759592071351,2.27600346,4448.6,4447.4,0.3991]
[1759592071552,2.27600346,4448.6,4447.5,2.54]
[1759592071978,2.8714,4448.5,4447.5,2.54]
[1759592072186,0.02809999,4448.4,4447.5,2.54]
[1759592072589,0.02809999,4448.4,4447.3,0.4361]
[1759592072792,0.4714,4448.3,4447.1,0.01]
[1759592072951,0.02810125,4448.2,4447.1,0.01]
[1759592073147,4.64820275,4448.0,4447.2,1.813]
[1759592073352,2.27637037,4447.9,4447.1,0.01]
[1759592073554,0.49950314,4447.9,4447.1,0.01]
[1759592073977,2.74776272,4447.9,4447.1,0.01]
[1759592074187,0.1128,4447.3,4447.1,0.01]
[1759592074681,0.67491487,4448.3,4447.1,0.01]
[1759592074682,0.67491487,4448.3,4447.6,2.24838652]
[1759592074992,0.67491487,4448.3,4447.2,2.98743723]
[1759592074993,0.02809809,4448.7,4447.8,2.24828355]
[1759592075151,0.02809809,4448.7,4447.9,0.01132485]
[1759592075981,0.0280962,4449.0,4448.0,2.9761]
[1759592076191,0.0280943,4449.3,4448.1,0.44742182]
[1759592076491,0.51149051,4449.9,4448.2,0.01131954]
[1759592076685,0.51149051,4449.9,4448.5,2.24794471]
[1759592076906,0.51149051,4449.9,4448.6,0.4361]
[1759592077086,0.51149051,4449.9,4448.7,2.24783832]
[1759592077256,0.51149051,4449.9,4448.8,0.01131197]
[1759592077456,0.51149051,4449.9,4448.9,2.54]
[1759592078363,2.4,4449.8,4448.9,2.54]
[1759592078577,0.02809178,4449.7,4448.9,2.54]
[1759592079482,0.02809241,4449.6,4448.9,2.54]
[1759592080506,0.02809304,4449.5,4448.9,2.54]
[1759592080708,2.2754005,4449.8,4448.9,2.54]
[1759592081013,0.02809115,4449.8,4448.6,0.4361]
[1759592081219,2.2753844,4449.8,4448.6,0.4361]
[1759592081511,0.02809115,4449.8,4448.6,0.4361]
[1759592081722,2.42809115,4449.8,4448.6,0.4361]
[1759592082019,2.27538431,4449.8,4448.6,0.4361]
[1759592082178,2.24734567,4449.7,4448.6,0.4361]
[1759592082379,0.4714,4449.7,4447.7,0.4361]
[1759592082578,0.02809241,4449.6,4447.8,3.97427243]
[1759592082897,0.4714,4449.5,4447.9,0.4361]
[1759592083103,0.02809367,4449.4,4448.0,2.539]
[1759592083299,0.02809367,4449.4,4448.1,0.4361]
[1759592083475,0.02809367,4449.4,4448.3,2.24800959]
[1759592083683,0.02809367,4449.4,4448.4,0.44741752]
[1759592084083,0.0280943,4449.3,4448.4,0.44741752]
[1759592084420,0.0280943,4449.3,4448.5,2.539]
[1759592084622,0.112,4448.7,4448.5,2.55031676]
[1759592085120,0.112,4448.7,4448.6,0.4361]
[1759592085680,0.112,4448.7,4448.6,2.9751]
[1759592086217,0.112,4448.7,4448.6,2.539]
[1759592086607,0.112,4448.7,4448.6,2.9751]
[1759592087006,0.02809367,4449.4,4448.7,2.12141266]
[1759592087318,0.112,4449.2,4448.8,0.4361]
[1759592087622,0.112,4449.2,4448.6,2.651]
[1759592087916,0.112,4449.2,4448.7,2.539]
[1759592088414,0.112,4449.2,4448.7,2.9751]
[1759592088616,0.112,4449.2,4448.9,2.24769997]
[1759592088817,0.112,4449.2,4449.0,0.01131398]
[1759592089174,0.112,4449.2,4448.9,0.01131398]
[1759592089581,0.112,4449.2,4448.7,2.539]
[1759592090225,0.112,4449.2,4448.7,2.9751]
[1759592091287,0.112,4449.2,4448.8,2.24777934]
[1759592091619,0.112,4449.2,4448.9,4.78674281]
[1759592091822,0.112,4449.2,4449.0,2.25900869]
[1759592092022,0.112,4449.2,4449.0,0.4277]
[1759592092400,0.112,4449.2,4448.9,2.539]
[1759592092726,0.112,4449.2,4449.0,2.539]
[1759592093301,0.112,4449.2,4448.6,2.78758764]
[1759592093527,0.112,4449.2,4448.7,2.539]
[1759592093729,0.112,4449.2,4448.8,2.24775051]
[1759592094031,0.112,4449.2,4448.8,2.67545051]
[1759592094345,0.112,4449.2,4448.9,0.4277]
[1759592094648,0.112,4449.2,4449.0,2.539]
[1759592095247,0.112,4449.2,4449.0,4.79799882]
[1759592095449,0.112,4449.2,4449.1,0.4277]
[1759592095652,0.002,4449.7,4449.1,2.68665831]
[1759592095815,0.112,4449.4,4449.1,2.68665831]
[1759592096335,0.112,4449.4,4449.1,0.43901272]
[1759592096648,0.114,4449.7,4449.1,0.12331272]
[1759592096824,0.114,4449.7,4449.1,2.78733527]
[1759592097025,0.114,4449.7,4449.3,2.24752151]
[1759592097277,0.114,4449.7,4449.1,0.12331019]
[1759592097278,0.114,4449.7,4449.4,2.55030842]
[1759592097652,0.114,4449.7,4449.6,2.24739302]
[1759592097842,0.114,4449.7,4449.6,2.25869942]
[1759592098024,0.114,4449.7,4449.6,2.68639942]
[1759592098235,0.002,4449.7,4449.6,2.68639942]
[1759592098434,0.002,4449.7,4449.6,0.4390064]
[1759592098637,0.002,4449.7,4449.6,2.68639942]
[1759592099677,0.002,4449.7,4449.6,5.22539942]
[1759592099824,0.002,4449.7,4449.6,5.21409302]
[1759592100540,0.002,4449.7,4449.6,5.97145042]
[1759592101067,0.002,4449.7,4449.6,3.49848349]
[1759592101284,0.002,4449.7,4449.6,1.25109047]
[1759592101428,0.002,4449.7,4449.6,5.28012609]
[1759592101633,0.002,4449.7,4449.6,2.74112609]
[1759592101834,0.002,4449.7,4449.6,5.21409302]
[1759592102076,0.002,4449.7,4449.6,2.67509302]
[1759592102439,0.002,4449.7,4449.5,2.24739692]
[1759592102632,0.002,4449.7,4449.6,0.46069393]
[1759592102875,0.002,4449.7,4449.4,0.112]
[1759592103174,0.002,4449.7,4449.4,2.35949046]
[1759592103477,0.002,4449.7,4449.5,4.78643926]
[1759592103678,0.002,4449.7,4449.5,2.539]
[1759592103863,0.4501,4449.6,4448.8,2.24777653]
[1759592104175,0.4501,4449.6,4448.9,2.76377765]
[1759592104338,0.4501,4449.6,4448.9,2.87577765]
[1759592104535,0.4501,4449.6,4448.9,5.12352361]
[1759592104766,0.4501,4449.6,4448.9,0.33677765]
[1759592104980,0.02809304,4449.5,4449.0,2.539]
[1759592105178,0.112,4449.4,4448.9,0.112]
[1759592105472,0.5621,4449.4,4449.0,2.539]
[1759592105679,0.5621,4449.4,4449.1,2.539]
[1759592106471,0.5621,4449.4,4448.9,0.112]
[1759592106680,0.5621,4449.4,4449.0,2.539]
[1759592106985,0.112,4449.4,4449.1,2.539]
[1759592107543,0.112,4449.4,4448.9,0.112]
[1759592107742,0.112,4449.4,4449.2,2.539]
[1759592108368,0.112,4449.4,4448.9,0.112]
[1759592108682,0.4501,4449.3,4449.0,2.539]
[1759592108858,0.112,4449.4,4449.1,2.539]
[1759592109059,0.4501,4449.2,4448.6,0.113]
[1759592109377,0.4501,4449.2,4448.7,2.539]
[1759592109741,0.112,4449.4,4448.6,0.113]
[1759592109940,0.112,4449.4,4448.7,2.539]
[1759592110145,0.0280943,4449.3,4448.8,2.539]
[1759592111079,0.0280943,4449.3,4448.9,2.539]
[1759592111667,0.0280943,4449.3,4448.6,0.113]
[1759592111859,0.0280943,4449.3,4448.7,2.539]
[1759592112059,0.0280943,4449.3,4448.8,2.539]
[1759592112690,0.4781943,4449.3,4448.8,2.539]
[1759592112851,0.0280943,4449.3,4448.9,2.539]
[1759592113052,0.4501,4449.2,4449.0,2.539]
[1759592113289,0.4501,4449.2,4449.1,2.539]
[1759592113693,0.112,4449.4,4449.1,2.539]
[1759592113865,0.112,4449.4,4448.6,0.113]
[1759592114067,0.112,4449.4,4448.7,2.539]
[1759592114283,0.0280943,4449.3,4448.7,4.78682578]
[1759592114590,0.0280943,4449.3,4448.8,2.2477942]
[1759592114897,0.0280943,4449.3,4448.9,2.24770357]
[1759592115081,0.002,4449.7,4449.0,0.66794445]
[1759592115082,0.112,4449.5,4449.0,0.66794445]
[1759592115262,0.112,4449.5,4449.1,5.21434559]
[1759592115462,0.112,4449.5,4449.2,0.4277]
[1759592115668,0.112,4449.5,4449.2,2.24755]
[1759592115864,0.112,4449.5,4449.1,2.539]
[1759592116399,0.112,4449.5,4449.2,2.539]
[1759592116770,0.112,4449.5,4449.3,2.539]
[1759592118400,0.112,4449.5,4449.4,2.539]
[1759592118989,0.112,4449.5,4449.0,2.247684]
[1759592119192,0.4501,4449.4,4448.8,0.112]
[1759592119503,0.112,4449.2,4448.9,2.539]
[1759592120103,0.112,4449.2,4448.9,2.22273072]
[1759592120270,0.112,4449.2,4448.7,2.24784768]
[1759592120799,0.112,4449.2,4448.8,2.24777245]
[1759592120979,0.112,4449.2,4448.7,2.24783327]
[1759592121394,0.112,4449.2,4448.8,2.539]
[1759592122900,0.112,4449.2,4448.6,0.113]
[1759592123105,0.112,4449.2,4448.7,2.539]
[1759592123293,0.4584,4449.1,4448.7,2.539]
[1759592123807,0.112,4449.2,4448.8,2.539]
[1759592123993,0.4584,4449.0,4448.9,2.539]
[1759592124608,0.4584,4449.0,4448.6,0.001]
[1759592124904,0.112,4448.7,4448.6,0.001]
[1759592125382,0.5704,4448.7,4448.6,0.001]
[1759592129845,0.59849809,4448.7,4448.6,0.001]
[1759592131718,0.14009809,4448.7,4448.6,0.001]
[1759592132313,0.112,4448.7,4448.6,0.001]
[1759592132530,0.112,4448.7,4448.6,0.4433]
[1759592133353,0.112,4448.7,4448.6,2.69119821]
[1759592133548,0.112,4449.0,4448.6,0.4433]
[1759592133848,0.112,4449.0,4448.7,0.4423]
[1759592134348,0.112,4449.0,4448.8,0.4423]
[1759592134549,0.112,4449.0,4448.8,2.69008172]
[1759592134846,0.112,4449.0,4448.6,2.24789592]
[1759592135048,0.112,4449.0,4448.8,2.69006254]
[1759592135548,0.112,4449.0,4448.9,0.4423]
[1759592136314,0.02809304,4449.5,4448.9,0.4423]
[1759592136528,0.112,4449.2,4449.0,2.539]
[1759592137025,0.112,4449.2,4448.6,2.24789789]
[1759592137216,0.112,4449.2,4448.7,2.539]
[1759592138048,0.112,4449.2,4448.8,0.4423]
[1759592138359,0.112,4449.2,4448.7,2.539]
[1759592139560,0.112,4449.2,4448.5,2.64024696]
[1759592139763,0.112,4449.2,4448.5,0.3923]
[1759592140138,0.112,4449.2,4448.5,2.64022456]
[1759592140336,0.112,4449.2,4448.7,2.24783946]
[1759592140537,0.112,4449.2,4448.8,2.24776198]
[1759592140736,0.112,4449.2,4448.9,2.539]
[1759592141074,0.002,4449.6,4448.9,2.78564314]
[1759592141242,0.114,4449.6,4449.2,2.24758751]
[1759592141439,0.114,4449.6,4449.3,2.539]
[1759592142263,0.114,4449.6,4449.0,2.24768333]
[1759592142468,0.114,4449.6,4449.1,2.539]
[1759592143469,0.114,4449.6,4449.2,2.539]
[1759592143683,0.114,4449.6,4448.9,2.93668529]
[1759592143830,0.114,4449.6,4449.3,2.539]
[1759592144572,0.114,4449.6,4449.3,2.2475247]
[1759592144774,0.114,4449.6,4449.5,2.24744353]
[1759592145127,0.114,4449.6,4449.5,2.68974353]
[1759592145332,0.002,4449.6,4449.5,2.68974353]
[1759592145746,0.002,4449.6,4449.5,2.80174353]
[1759592146160,0.002,4449.7,4449.6,2.24739302]
[1759592146359,0.012,4449.9,4449.8,2.24729201]
[1759592146574,0.012,4449.9,4449.8,4.89829201]
[1759592146972,0.012,4449.9,4449.8,5.34059201]
[1759592149146,0.012,4449.9,4449.8,2.80159201]
[1759592149340,0.012,4449.9,4449.8,5.47807144]
[1759592149678,0.012,4449.9,4449.8,5.92037144]
[1759592150058,0.012,4449.9,4449.8,3.38237144]
[1759592150262,0.012,4449.9,4449.8,5.92037144]
[1759592152190,0.002,4450.5,4449.9,0.32559445]
[1759592152499,0.002,4450.5,4450.4,2.24698903]
[1759592152692,0.08991744,4452.0,4450.4,7.37058348]
[1759592152850,0.122,4451.9,4451.3,2.24652438]
[1759592153045,0.122,4451.9,4451.4,2.538]
[1759592153255,0.122,4451.9,4451.7,2.24629346]
[1759592153256,0.01,4451.9,4451.7,2.24629346]
[1759592153458,0.01,4451.9,4451.6,0.112]
[1759592153459,0.01,4451.9,4451.8,4.7842824]
[1759592154081,0.01,4451.9,4451.8,2.538]
[1759592154277,0.01,4451.9,4451.8,4.7842824]
[1759592154483,0.01,4451.9,4451.8,5.61054779]
[1759592154792,0.01,4451.9,4451.8,6.05374779]
[1759592155188,0.4561,4452.9,4452.3,2.24602654]
[1759592155189,0.112,4452.7,4452.3,2.24602654]
[1759592155391,0.112,4452.7,4451.8,3.80746539]
[1759592155392,0.112,4452.7,4452.4,2.538]
[1759592155728,0.01,4452.9,4452.5,2.24592925]
[1759592156040,0.01,4452.9,4452.7,2.24582543]
[1759592156180,0.01,4452.9,4452.8,2.24577793]
[1759592156523,0.01,4453.9,4452.9,2.2457275]
[1759592156677,0.01,4453.9,4453.0,2.26]
[1759592156876,0.01,4453.9,4453.7,2.24530357]
[1759592157182,2.25473619,4454.9,4453.1,8.02765859]
[1759592157183,0.01,4454.9,4453.8,2.26]
[1759592157397,0.4461,4454.7,4453.9,2.538]
[1759592158008,2.24492191,4454.5,4453.8,2.26]
[1759592158216,2.24507787,4454.2,4453.8,2.26]
[1759592158416,2.24502524,4454.3,4453.8,2.26]
[1759592158619,0.4741634,4454.2,4453.9,2.538]
[1759592158917,0.4741634,4454.2,4453.8,2.26]
[1759592158918,0.4461,4454.1,4453.8,2.26]
[1759592159079,0.47416466,4454.0,4453.8,2.26]
[1759592159417,0.02806466,4454.0,4453.8,2.26]
[1759592159575,2.24512247,4454.1,4453.9,2.538]
[1759592159781,2.402,4454.7,4453.9,2.538]
[1759592159782,0.4461,4454.0,4453.9,2.538]
[1759592159989,0.4461,4454.0,4453.9,2.537]
[1759592161108,0.02806277,4454.3,4453.9,2.537]
[1759592161285,0.4461,4454.3,4453.9,2.537]
[1759592161493,2.24512247,4454.1,4453.8,2.26]
[1759592161820,2.24522328,4453.9,4453.8,2.26]
[1759592162010,2.69132328,4453.9,4453.8,2.26]
[1759592163781,5.72492328,4453.9,4453.8,2.26]
[1759592164326,3.4797,4453.9,4453.8,2.26]
[1759592164530,2.8461,4453.9,4453.8,2.26]
[1759592164699,2.4,4453.9,4453.8,2.26]
[1759592165076,0.02806088,4454.6,4453.8,4.50522914]
[1759592165190,0.002,4454.7,4453.8,3.18876158]